bitfinex-derivatives/quotes_BTCF0:USTF0_20241231
["timestamp","ask_amount","ask_price","bid_price","bid_amount"]
[1735626500569,0.053914,92874.0,92859.0,0.053922]
[1735626500769,0.053914,92874.0,92863.0,0.3608]
[1735626500963,0.053914,92874.0,92872.0,4e-05]
[1735626503075,0.053914,92874.0,92863.0,0.34084]
[1735626503282,0.055914,92874.0,92872.0,0.001]
[1735626503577,4e-05,92873.0,92872.0,0.001]
[1735626505374,0.0381,92878.0,92872.0,0.001]
[1735626505375,0.27693917,92879.0,92872.0,0.001]
[1735626505874,0.27693917,92879.0,92877.0,4e-05]
[1735626505875,0.053912,92878.0,92877.0,4e-05]
[1735626507381,0.053912,92878.0,92877.0,0.00104]
[1735626507675,0.055912,92878.0,92877.0,0.00104]
[1735626507977,0.055912,92878.0,92873.0,0.03495496]
[1735626507978,0.002,92878.0,92873.0,0.03495496]
[1735626508170,0.053913,92876.0,92868.0,0.053917]
[1735626508373,4e-05,92874.0,92868.0,0.053917]
[1735626510183,4e-05,92874.0,92873.0,0.001]
[1735626510774,0.00104,92874.0,92868.0,0.054917]
[1735626511278,4e-05,92869.0,92868.0,0.054917]
[1735626512373,4e-05,92869.0,92868.0,0.053917]
[1735626512575,0.001,92874.0,92873.0,0.00096]
[1735626512980,0.001,92874.0,92868.0,0.034917]
[1735626513286,0.00104,92869.0,92868.0,0.035917]
[1735626513979,0.001,92874.0,92873.0,0.00096]
[1735626514882,0.053914,92874.0,92872.0,4e-05]
[1735626515386,4e-05,92873.0,92872.0,4e-05]
[1735626516083,0.055914,92874.0,92873.0,0.00096]
[1735626516686,0.002,92873.0,92872.0,0.00104]
[1735626517075,0.00204,92873.0,92872.0,0.00104]
[1735626517788,4e-05,92873.0,92872.0,4e-05]
[1735626517987,0.053914,92874.0,92873.0,0.00096]
[1735626518190,0.053914,92874.0,92868.0,0.053917]
[1735626518380,0.053914,92874.0,92872.0,4e-05]
[1735626518784,4e-05,92873.0,92872.0,4e-05]
[1735626519578,0.00304,92873.0,92872.0,0.00104]
[1735626523190,0.053915,92872.0,92864.0,0.39643476]
[1735626523390,0.053918,92867.0,92864.0,0.39643476]
[1735626523591,4e-05,92865.0,92864.0,0.39643476]
[1735626525891,0.00404,92865.0,92864.0,0.39743476]
[1735626527392,4e-05,92865.0,92864.0,0.39643476]
[1735626527592,4e-05,92865.0,92864.0,0.39743476]
[1735626527593,0.00504,92865.0,92864.0,0.39743476]
[1735626527788,0.058959,92865.0,92864.0,0.39743476]
[1735626528099,0.058959,92865.0,92864.0,0.37743476]
[1735626530086,0.057959,92865.0,92864.0,0.37743476]
[1735626533003,0.057959,92865.0,92864.0,0.35743476]
[1735626533195,0.058959,92865.0,92864.0,0.35743476]
[1735626534304,0.053959,92865.0,92864.0,0.35643476]
[1735626534506,0.058959,92865.0,92864.0,0.35743476]
[1735626535706,0.058959,92865.0,92864.0,0.41271619]
[1735626536697,0.053959,92865.0,92864.0,0.41171619]
[1735626536899,0.057959,92865.0,92864.0,0.41271619]
[1735626538098,0.057959,92865.0,92864.0,0.39271619]
[1735626542901,0.057959,92865.0,92864.0,0.05628143]
[1735626543107,0.057959,92865.0,92864.0,0.03628143]
[1735626543309,0.057959,92865.0,92864.0,0.001]
[1735626545410,0.00404,92865.0,92864.0,0.001]
[1735626546405,0.00404,92865.0,92864.0,0.05492]
[1735626547002,4e-05,92865.0,92864.0,0.05392]
[1735626547210,0.00404,92865.0,92864.0,0.05492]
[1735626547606,4e-05,92865.0,92864.0,0.05392]
[1735626547912,0.00404,92865.0,92864.0,0.05492]
[1735626548114,0.00404,92865.0,92864.0,0.001]
[1735626548317,0.00204,92865.0,92864.0,0.001]
[1735626550112,0.00404,92865.0,92864.0,0.001]
[1735626551408,0.00204,92865.0,92864.0,0.001]
[1735626553015,0.00204,92865.0,92863.0,0.0164]
[1735626553215,0.00204,92865.0,92864.0,0.001]
[1735626553216,0.00404,92865.0,92864.0,0.001]
[1735626553422,0.004,92865.0,92864.0,0.001]
[1735626553622,0.00404,92865.0,92864.0,0.001]
[1735626556221,0.00504,92865.0,92864.0,0.001]
[1735626556615,0.00504,92865.0,92863.0,0.0164]
[1735626556921,0.005,92865.0,92864.0,0.001]
[1735626557423,0.00504,92865.0,92864.0,0.001]
[1735626557917,0.00504,92865.0,92863.0,0.0164]
[1735626558113,0.00504,92865.0,92864.0,0.001]
[1735626558314,0.005,92865.0,92864.0,0.001]
[1735626558514,0.00504,92865.0,92864.0,0.001]
[1735626558814,0.00504,92865.0,92862.0,0.0358]
[1735626559225,4e-05,92863.0,92862.0,0.0358]
[1735626559624,0.31745655,92882.0,92862.0,0.3966]
[1735626559815,0.05391,92881.0,92870.0,0.07321461]
[1735626560018,0.05391,92881.0,92880.0,4e-05]
[1735626561120,0.05991,92881.0,92880.0,0.00104]
[1735626562719,0.05391,92881.0,92880.0,4e-05]
[1735626562922,0.05491,92881.0,92880.0,0.00104]
[1735626563227,0.05491,92881.0,92869.0,0.3608]
[1735626563228,0.053916,92870.0,92869.0,0.34184]
[1735626563527,0.053956,92870.0,92869.0,0.34184]
[1735626563927,0.052956,92870.0,92869.0,0.34184]
[1735626565726,0.052956,92870.0,92869.0,0.34284]
[1735626565727,0.055956,92870.0,92869.0,0.34284]
[1735626568123,0.055956,92870.0,92869.0,0.001]
[1735626569828,4e-05,92870.0,92861.0,0.41474876]
[1735626570028,0.056956,92870.0,92869.0,0.001]
[1735626570230,0.056916,92870.0,92869.0,0.001]
[1735626570432,0.056956,92870.0,92869.0,0.001]
[1735626570936,4e-05,92870.0,92861.0,0.41474876]
[1735626571126,0.053919,92865.0,92861.0,0.41574876]
[1735626571432,4e-05,92862.0,92861.0,0.41574876]
[1735626572624,0.052959,92865.0,92861.0,0.41474876]
[1735626573026,0.052959,92865.0,92861.0,0.39478876]
[1735626573319,0.004,92862.0,92861.0,0.39578876]
[1735626573730,0.052959,92865.0,92861.0,0.39478876]
[1735626573925,0.056959,92865.0,92861.0,0.39478876]
[1735626574125,0.056959,92865.0,92863.0,4e-05]
[1735626575425,0.052959,92865.0,92863.0,4e-05]
[1735626576038,0.057959,92865.0,92863.0,0.00104]
[1735626578135,0.057959,92865.0,92861.0,0.37582876]
[1735626578538,4e-05,92862.0,92861.0,0.37582876]
[1735626578837,4e-05,92862.0,92861.0,0.01502876]
[1735626579041,4e-05,92862.0,92861.0,0.3608]
[1735626579539,4e-05,92862.0,92861.0,0.3618]
[1735626580043,4e-05,92862.0,92861.0,0.3608]
[1735626580230,0.00504,92862.0,92861.0,0.3618]
[1735626583041,0.00504,92862.0,92861.0,0.3418]
[1735626583338,0.00604,92862.0,92861.0,0.3418]
[1735626585935,0.00604,92862.0,92861.0,0.395722]
[1735626588144,0.00604,92862.0,92861.0,0.375722]
[1735626591547,0.00604,92862.0,92861.0,0.3218]
[1735626593147,0.00604,92862.0,92861.0,0.3018]
[1735626593347,4e-05,92862.0,92861.0,0.3008]
[1735626593542,0.00604,92862.0,92861.0,0.3018]
[1735626595637,0.00504,92862.0,92861.0,0.3018]
[1735626598039,0.00504,92862.0,92861.0,0.2818]
[1735626603044,0.00504,92862.0,92861.0,0.2618]
[1735626608156,0.00504,92862.0,92861.0,0.2418]
[1735626612661,0.0376,92885.0,92861.0,0.2418]
[1735626612662,0.053912,92878.0,92861.0,0.2418]
[1735626612860,0.053912,92878.0,92871.0,0.3608]
[1735626613161,0.053912,92878.0,92872.0,0.0565]
[1735626613551,0.053908,92884.0,92876.0,4e-05]
[1735626614062,0.053908,92884.0,92882.0,4e-05]
[1735626616859,0.053908,92884.0,92882.0,0.00104]
[1735626618858,0.053911,92880.0,92875.0,0.034953]
[1735626619851,4e-05,92876.0,92875.0,0.034953]
[1735626620450,4e-05,92876.0,92875.0,0.035953]
[1735626620849,4e-05,92876.0,92875.0,0.034953]
[1735626621045,4e-05,92876.0,92875.0,0.035953]
[1735626621452,4e-05,92876.0,92875.0,0.001]
[1735626623149,4e-05,92876.0,92872.0,0.0388]
[1735626623551,4e-05,92873.0,92872.0,0.0388]
[1735626624360,4e-05,92873.0,92872.0,0.09247642]
[1735626624559,4e-05,92873.0,92872.0,0.0398]
[1735626624958,0.053955,92873.0,92872.0,0.0398]
[1735626626262,4e-05,92873.0,92864.0,0.3608]
[1735626626564,0.052919,92865.0,92864.0,0.3608]
[1735626627260,0.052959,92865.0,92864.0,0.3608]
[1735626627454,0.052926,92854.0,92853.0,0.41593837]
[1735626627648,0.052926,92854.0,92853.0,0.05513837]
[1735626627963,0.052966,92854.0,92851.0,0.0383]
[1735626628161,0.052966,92854.0,92852.0,0.13534048]
[1735626628360,4e-05,92853.0,92852.0,0.13534048]
[1735626629154,0.051966,92854.0,92852.0,0.13534048]
[1735626629558,0.051966,92854.0,92852.0,0.19064281]
[1735626633168,0.051966,92854.0,92852.0,0.17064281]
[1735626637564,0.052966,92854.0,92852.0,0.17164281]
[1735626638170,0.052966,92854.0,92852.0,0.15164281]
[1735626639071,0.051966,92854.0,92852.0,0.15164281]
[1735626641880,0.051966,92854.0,92852.0,0.15064281]
[1735626643175,0.051966,92854.0,92852.0,0.05530233]
[1735626647971,0.051966,92854.0,92852.0,0.05630233]
[1735626648175,0.051966,92854.0,92852.0,0.001]
[1735626650182,0.051966,92854.0,92852.0,0.05449352]
[1735626650376,0.3608,92870.0,92852.0,0.05449352]
[1735626650377,0.3608,92870.0,92852.0,0.001]
[1735626650578,0.05392,92863.0,92860.0,0.07321461]
[1735626650777,0.053921,92862.0,92855.0,0.053925]
[1735626651079,4e-05,92856.0,92855.0,0.053925]
[1735626653089,4e-05,92856.0,92855.0,0.033925]
[1735626653986,4e-05,92856.0,92854.0,4e-05]
[1735626654191,0.053965,92856.0,92854.0,4e-05]
[1735626654497,4e-05,92855.0,92854.0,4e-05]
[1735626657889,0.03734,92855.0,92854.0,4e-05]
[1735626658089,0.03734,92855.0,92851.0,0.39536154]
[1735626658284,0.053927,92852.0,92851.0,0.39536154]
[1735626658487,0.053967,92852.0,92851.0,0.39536154]
[1735626660296,0.053967,92852.0,92851.0,0.39636154]
[1735626662002,4e-05,92852.0,92851.0,0.39636154]
[1735626663101,4e-05,92852.0,92851.0,0.37636154]
[1735626667005,4e-05,92852.0,92851.0,0.43028854]
[1735626668001,4e-05,92852.0,92851.0,0.41028854]
[1735626670109,4e-05,92852.0,92851.0,0.35636154]
[1735626671104,4e-05,92852.0,92851.0,0.05552154]
[1735626672996,4e-05,92852.0,92851.0,0.03552154]
[1735626673203,4e-05,92852.0,92851.0,0.001]
[1735626673701,0.36084,92852.0,92851.0,0.001]
[1735626673901,0.36084,92852.0,92851.0,0.05471926]
[1735626674617,0.39814,92852.0,92851.0,0.05471926]
[1735626674998,0.39814,92852.0,92836.0,0.0369]
[1735626674999,0.053934,92839.0,92836.0,0.0369]
[1735626675311,4e-05,92837.0,92831.0,0.24731912]
[1735626675503,4e-05,92837.0,92835.0,0.41484839]
[1735626675704,4e-05,92836.0,92835.0,0.05404839]
[1735626675905,4e-05,92836.0,92834.0,0.3608]
[1735626676104,0.053934,92839.0,92836.0,0.00296]
[1735626676502,0.053934,92839.0,92836.0,0.003]
[1735626676904,0.053934,92839.0,92836.0,0.00404]
[1735626678214,0.053935,92838.0,92836.0,0.00404]
[1735626679012,0.053935,92838.0,92836.0,0.00704]
[1735626679316,0.053935,92838.0,92836.0,0.00304]
[1735626679615,0.053935,92838.0,92836.0,0.00704]
[1735626692316,0.0754,92837.0,92836.0,0.00704]
[1735626699122,0.0754,92837.0,92836.0,0.00304]
[1735626699316,0.107874,92836.0,92808.0,0.053952]
[1735626699526,0.053946,92819.0,92818.0,0.41490373]
[1735626699921,0.052986,92819.0,92818.0,0.41490373]
[1735626700923,0.052986,92819.0,92818.0,0.05410373]
[1735626701118,0.052986,92819.0,92818.0,0.001]
[1735626701929,0.052986,92819.0,92818.0,0.003]
[1735626702729,0.052986,92819.0,92818.0,0.002]
[1735626705617,4e-05,92819.0,92818.0,0.002]
[1735626706025,4e-05,92819.0,92818.0,0.039]
[1735626706224,0.3608,92838.0,92818.0,0.0785]
[1735626706532,0.053934,92839.0,92835.0,4e-05]
[1735626706935,0.053934,92839.0,92836.0,4e-05]
[1735626707123,0.053931,92846.0,92836.0,4e-05]
[1735626707429,0.053927,92852.0,92844.0,0.053931]
[1735626707739,0.053927,92852.0,92841.0,0.3608]
[1735626707740,0.053923,92859.0,92850.0,0.3608]
[1735626708131,0.414719,92866.0,92855.0,0.053925]
[1735626708334,0.3608,92866.0,92861.0,0.053921]
[1735626708638,0.3608,92866.0,92864.0,0.05392]
[1735626708936,0.054553,92876.0,92868.0,0.053917]
[1735626709134,0.053913,92876.0,92868.0,0.053917]
[1735626709433,0.053913,92876.0,92873.0,4e-05]
[1735626710232,0.057913,92876.0,92873.0,4e-05]
[1735626710834,0.057913,92876.0,92873.0,0.00104]
[1735626712431,0.418713,92876.0,92873.0,0.00104]
[1735626713130,0.418713,92876.0,92869.0,0.034957]
[1735626713433,4e-05,92870.0,92869.0,0.034957]
[1735626714630,4e-05,92870.0,92869.0,0.035957]
[1735626716734,4e-05,92870.0,92869.0,0.034957]
[1735626716936,0.00604,92870.0,92869.0,0.035957]
[1735626718128,0.00604,92870.0,92869.0,0.001]
[1735626718328,4e-05,92870.0,92869.0,0.053917]
[1735626718524,0.00504,92870.0,92869.0,0.053917]
[1735626722545,0.053902,92895.0,92869.0,0.053917]
[1735626722762,0.053902,92895.0,92885.0,0.11156349]
[1735626722937,0.053903,92894.0,92892.0,4e-05]
[1735626723137,0.053903,92894.0,92885.0,0.09160349]
[1735626723345,0.053898,92901.0,92892.0,0.053903]
[1735626723530,0.053899,92899.0,92892.0,0.053903]
[1735626723733,4e-05,92893.0,92892.0,0.053903]
[1735626724846,4e-05,92893.0,92892.0,0.054903]
[1735626724847,0.00504,92893.0,92892.0,0.054903]
[1735626727245,0.00504,92893.0,92892.0,0.10755318]
[1735626728148,0.00504,92893.0,92892.0,0.08755318]
[1735626729649,0.00504,92893.0,92892.0,0.001]
[1735626729946,0.04294,92893.0,92865.0,0.053919]
[1735626730261,0.35984,92869.0,92865.0,0.053919]
[1735626731151,0.35884,92869.0,92865.0,0.053919]
[1735626731341,0.053918,92868.0,92859.0,0.053922]
[1735626731541,0.35884,92869.0,92865.0,0.001]
[1735626732050,4e-05,92866.0,92865.0,0.001]
[1735626732241,0.053959,92866.0,92865.0,0.001]
[1735626732447,0.053925,92855.0,92854.0,0.3608]
[1735626732946,0.053965,92855.0,92854.0,0.3608]
[1735626733449,0.052965,92855.0,92854.0,0.3608]
[1735626733846,0.053926,92853.0,92852.0,4e-05]
[1735626734037,0.051926,92853.0,92852.0,4e-05]
[1735626734247,0.048966,92853.0,92852.0,4e-05]
[1735626734952,0.048966,92853.0,92852.0,0.00304]
[1735626735250,0.048966,92853.0,92852.0,0.00604]
[1735626735651,0.048966,92853.0,92852.0,0.36684]
[1735626735652,4e-05,92853.0,92852.0,0.36684]
[1735626736436,4e-05,92853.0,92852.0,1.86684]
[1735626737842,0.20047753,92869.0,92852.0,1.86684]
[1735626738248,0.053917,92868.0,92866.0,4e-05]
[1735626740451,0.057917,92868.0,92866.0,4e-05]
[1735626748346,0.057917,92868.0,92866.0,0.053958]
[1735626751241,0.004,92868.0,92866.0,0.053958]
[1735626752351,0.053907,92886.0,92866.0,0.414758]
[1735626752557,0.053907,92886.0,92880.0,0.05391]
[1735626752848,0.053907,92886.0,92880.0,0.05395]
[1735626753050,0.053907,92886.0,92881.0,0.0165]
[1735626753250,0.414707,92886.0,92881.0,0.0165]
[1735626753453,0.415347,92886.0,92881.0,0.0165]
[1735626753652,0.01180904,92883.0,92881.0,0.0165]
[1735626754752,0.06571804,92883.0,92881.0,0.0175]
[1735626755555,0.06871804,92883.0,92881.0,0.0175]
[1735626756842,0.06671804,92883.0,92881.0,0.0165]
[1735626757054,0.06271804,92883.0,92881.0,0.0165]
[1735626758047,0.06271804,92883.0,92880.0,4e-05]
[1735626758364,0.001,92883.0,92882.0,0.053909]
[1735626758957,0.00104,92883.0,92882.0,0.053909]
[1735626759455,0.00204,92883.0,92882.0,0.053909]
[1735626760275,4e-05,92883.0,92882.0,0.053909]
[1735626761555,4e-05,92883.0,92882.0,0.091809]
[1735626763059,4e-05,92883.0,92882.0,0.071809]
[1735626764153,4e-05,92883.0,92882.0,0.432609]
[1735626764959,4e-05,92883.0,92882.0,0.3608]
[1735626766252,0.00104,92883.0,92882.0,0.3608]
[1735626767157,0.053909,92882.0,92880.0,4e-05]
[1735626767563,4e-05,92881.0,92880.0,4e-05]
[1735626768256,4e-05,92881.0,92874.0,0.38525336]
[1735626768654,4e-05,92875.0,92874.0,0.38525336]
[1735626769963,0.00104,92875.0,92874.0,0.38525336]
[1735626773158,0.00104,92875.0,92874.0,0.36525336]
[1735626775161,4e-05,92875.0,92874.0,0.36525336]
[1735626775369,0.00104,92875.0,92874.0,0.36525336]
[1735626775960,4e-05,92875.0,92874.0,0.36525336]
[1735626778162,4e-05,92875.0,92874.0,0.34525336]
[1735626778369,4e-05,92875.0,92874.0,0.04441336]
[1735626778569,4e-05,92875.0,92873.0,0.053914]
[1735626778961,4e-05,92874.0,92873.0,0.053914]
[1735626780563,4e-05,92874.0,92873.0,0.04627192]
[1735626780767,0.091454,92874.0,92870.0,0.3608]
[1735626781071,4e-05,92871.0,92870.0,0.3608]
[1735626781370,4e-05,92871.0,92870.0,0.45974627]
[1735626781876,0.3608,92884.0,92870.0,0.40583027]
[1735626782262,0.3608,92884.0,92881.0,4e-05]
[1735626782672,0.3608,92884.0,92882.0,0.053909]
[1735626782972,0.053909,92883.0,92881.0,4e-05]
[1735626783276,0.053911,92880.0,92870.0,0.40583027]
[1735626783572,0.053911,92880.0,92871.0,1.5]
[1735626784164,4e-05,92872.0,92871.0,1.5]
[1735626785570,4e-05,92872.0,92870.0,0.45974627]
[1735626785776,4e-05,92872.0,92870.0,0.40583027]
[1735626786075,4e-05,92871.0,92870.0,0.40583027]
[1735626788176,4e-05,92871.0,92870.0,0.38583027]
[1735626788669,0.053956,92871.0,92870.0,0.38583027]
[1735626793074,0.053956,92871.0,92870.0,0.36583027]
[1735626794571,0.03714,92871.0,92859.0,0.3608]
[1735626794772,0.053918,92867.0,92859.0,0.3608]
[1735626794968,0.053958,92867.0,92859.0,0.3608]
[1735626795582,0.053958,92867.0,92866.0,0.03802024]
[1735626795876,0.053958,92867.0,92866.0,0.00104]
[1735626796273,0.053958,92867.0,92866.0,0.03878209]
[1735626796465,0.053958,92867.0,92866.0,0.00104]
[1735626798282,0.053958,92867.0,92866.0,0.03950805]
[1735626798478,0.053958,92867.0,92866.0,0.00104]
[1735626804973,0.053958,92867.0,92850.0,0.3608]
[1735626804974,0.053927,92851.0,92850.0,0.3608]
[1735626805476,0.053967,92851.0,92850.0,0.3608]
[1735626805983,0.053967,92851.0,92850.0,0.03814594]
[1735626806287,0.053967,92851.0,92840.0,0.00161572]
[1735626806288,4e-05,92851.0,92840.0,0.00161572]
[1735626806486,0.053933,92842.0,92840.0,0.00161572]
[1735626806690,4e-05,92841.0,92840.0,0.00161572]
[1735626807184,0.053933,92842.0,92840.0,0.04068746]
[1735626807185,0.052973,92842.0,92840.0,0.04068746]
[1735626807388,0.052973,92842.0,92840.0,0.00161572]
[1735626808190,0.004,92842.0,92837.0,0.34245572]
[1735626808485,4e-05,92838.0,92837.0,0.34245572]
[1735626809077,4e-05,92838.0,92837.0,0.38114331]
[1735626810981,0.00404,92838.0,92837.0,0.38114331]
[1735626811386,0.00504,92838.0,92837.0,1.88114331]
[1735626813589,0.00304,92838.0,92837.0,1.88114331]
[1735626813789,0.00304,92838.0,92837.0,1.86114331]
[1735626815686,0.00304,92838.0,92837.0,0.36114331]
[1735626818199,0.00304,92838.0,92837.0,0.34114331]
[1735626819600,0.00404,92838.0,92837.0,0.34114331]
[1735626820398,0.00304,92838.0,92837.0,0.34114331]
[1735626821301,0.04014,92838.0,92837.0,0.34114331]
[1735626821991,0.03714,92838.0,92837.0,0.34214331]
[1735626822193,0.04014,92838.0,92837.0,0.34214331]
[1735626822894,0.04214,92838.0,92837.0,0.34114331]
[1735626823090,0.04214,92838.0,92837.0,0.32114331]
[1735626823487,0.03914,92838.0,92837.0,0.32114331]
[1735626823794,0.04214,92838.0,92837.0,0.32114331]
[1735626828092,0.04214,92838.0,92837.0,0.30114331]
[1735626828313,0.04114,92838.0,92837.0,0.30114331]
[1735626829091,0.04214,92838.0,92837.0,0.30114331]
[1735626829894,0.03914,92838.0,92837.0,0.30114331]
[1735626830095,0.04214,92838.0,92837.0,0.30114331]
[1735626830293,0.40294,92838.0,92837.0,0.03868759]
[1735626830598,0.40294,92838.0,92824.0,0.053943]
[1735626830912,4e-05,92825.0,92824.0,0.053943]
[1735626831205,4e-05,92825.0,92823.0,1.87579896]
[1735626831398,4e-05,92825.0,92823.0,1.90774927]
[1735626831399,0.053943,92824.0,92823.0,1.90774927]
[1735626831595,0.053983,92824.0,92823.0,0.39331031]
[1735626831796,0.052983,92824.0,92823.0,0.39331031]
[1735626832490,0.052983,92824.0,92823.0,0.03251031]
[1735626832698,0.052947,92818.0,92813.0,1.5]
[1735626832894,4e-05,92824.0,92813.0,1.5]
[1735626833102,4e-05,92814.0,92813.0,1.53298081]
[1735626833295,0.3608,92829.0,92822.0,0.053944]
[1735626833607,0.053936,92837.0,92825.0,0.053942]
[1735626833796,0.053936,92836.0,92827.0,0.07326457]
[1735626833998,0.053936,92836.0,92833.0,4e-05]
[1735626834199,0.0396,92845.0,92833.0,4e-05]
[1735626834401,0.053937,92835.0,92833.0,4e-05]
[1735626834591,0.053937,92835.0,92826.0,0.15131419]
[1735626834796,0.053933,92842.0,92832.0,0.3608]
[1735626834997,0.053933,92842.0,92833.0,0.053937]
[1735626835202,0.053933,92842.0,92838.0,4e-05]
[1735626835701,4e-05,92839.0,92838.0,4e-05]
[1735626838106,0.00304,92839.0,92838.0,0.01390236]
[1735626838307,0.00304,92839.0,92833.0,0.053937]
[1735626838710,4e-05,92834.0,92833.0,0.053937]
[1735626840318,0.00304,92834.0,92833.0,0.053937]
[1735626840700,0.00304,92834.0,92833.0,0.08722564]
[1735626841605,0.00404,92834.0,92833.0,0.08722564]
[1735626843111,0.00404,92834.0,92833.0,0.01328864]
[1735626843315,0.00404,92834.0,92832.0,0.3608]
[1735626843711,4e-05,92833.0,92832.0,0.3608]
[1735626844209,4e-05,92833.0,92832.0,0.39345373]
[1735626846111,0.00304,92833.0,92832.0,0.39345373]
[1735626846705,4e-05,92833.0,92832.0,0.39345373]
[1735626847015,0.00304,92833.0,92832.0,0.39345373]
[1735626848109,0.00304,92833.0,92832.0,0.37345373]
[1735626850515,0.00404,92833.0,92832.0,0.37345373]
[1735626850714,0.3608,92847.0,92832.0,0.37345373]
[1735626850917,0.3810213,92865.0,92832.0,0.37345373]
[1735626850918,0.0376,92864.0,92848.0,0.053929]
[1735626851119,0.053922,92860.0,92854.0,0.11161419]
[1735626851417,0.053923,92858.0,92850.0,0.20484219]
[1735626851908,4e-05,92851.0,92850.0,0.20484219]
[1735626852112,4e-05,92851.0,92850.0,0.093228]
[1735626852318,4e-05,92851.0,92850.0,0.0393]
[1735626852512,4e-05,92851.0,92848.0,0.001]
[1735626852709,0.053928,92850.0,92848.0,0.001]
[1735626852916,4e-05,92849.0,92848.0,0.001]
[1735626853213,4e-05,92849.0,92844.0,1.5006]
[1735626853214,0.052968,92850.0,92844.0,0.0006]
[1735626853414,0.052968,92850.0,92843.0,4e-05]
[1735626853609,0.052968,92850.0,92847.0,4e-05]
[1735626853915,0.052968,92850.0,92848.0,0.001]
[1735626854116,0.26334703,92857.0,92849.0,0.3608]
[1735626854311,0.003,92850.0,92849.0,0.3608]
[1735626854509,0.00304,92850.0,92849.0,0.3608]
[1735626855113,0.00404,92850.0,92849.0,0.3608]
[1735626855513,0.00604,92850.0,92849.0,0.3608]
[1735626856116,0.00604,92850.0,92849.0,0.3618]
[1735626858517,0.00604,92850.0,92849.0,0.001]
[1735626858714,0.00604,92850.0,92849.0,0.3618]
[1735626858922,0.00604,92850.0,92849.0,0.3418]
[1735626862416,0.00604,92850.0,92849.0,0.3782]
[1735626862619,0.3608,92863.0,92849.0,0.3782]
[1735626862815,0.090717,92869.0,92862.0,0.3608]
[1735626863010,0.0741,92880.0,92862.0,0.3608]
[1735626863212,0.053915,92872.0,92866.0,4e-05]
[1735626864023,0.053915,92872.0,92863.0,0.05392]
[1735626864219,0.3608,92879.0,92863.0,0.05392]
[1735626864220,0.053916,92871.0,92869.0,4e-05]
[1735626864719,4e-05,92870.0,92869.0,4e-05]
[1735626865426,0.053916,92871.0,92869.0,4e-05]
[1735626865724,0.053916,92871.0,92870.0,0.3608]
[1735626866618,0.054916,92871.0,92870.0,0.3608]
[1735626867011,0.053916,92871.0,92870.0,0.3608]
[1735626867216,0.054916,92871.0,92870.0,0.3618]
[1735626868221,0.054916,92871.0,92870.0,0.3418]
[1735626868723,0.053916,92871.0,92870.0,0.3408]
[1735626868924,0.053916,92871.0,92870.0,0.3418]
[1735626872031,0.053916,92871.0,92870.0,0.3408]
[1735626872230,0.053916,92871.0,92870.0,0.3418]
[1735626873031,0.053916,92871.0,92870.0,0.3218]
[1735626878024,0.053916,92871.0,92870.0,0.3018]
[1735626878621,0.053916,92871.0,92870.0,0.001]
[1735626878927,0.053916,92871.0,92869.0,4e-05]
[1735626878928,0.05392,92863.0,92862.0,0.3408]
[1735626879238,0.05396,92863.0,92862.0,0.3408]
[1735626880824,0.05496,92863.0,92862.0,0.3408]
[1735626881024,0.053923,92858.0,92857.0,0.04094398]
[1735626881233,0.0365,92862.0,92853.0,0.053926]
[1735626881438,0.053925,92855.0,92853.0,0.053926]
[1735626882337,0.053926,92853.0,92852.0,4e-05]
[1735626882736,0.053966,92853.0,92852.0,4e-05]
[1735626883129,0.053966,92853.0,92850.0,0.38274181]
[1735626883639,4e-05,92851.0,92850.0,0.38274181]
[1735626885445,4e-05,92851.0,92850.0,0.38374181]
[1735626885848,0.00104,92851.0,92850.0,0.38374181]
[1735626886639,0.00104,92851.0,92850.0,0.38274181]
[1735626888154,0.00104,92851.0,92850.0,0.36274181]
[1735626888940,4e-05,92851.0,92850.0,0.36274181]
[1735626889947,4e-05,92851.0,92850.0,0.32084]
[1735626890254,0.00104,92851.0,92850.0,0.32084]
[1735626890643,0.00104,92851.0,92843.0,0.00165542]
[1735626890852,0.053931,92844.0,92843.0,4e-05]
[1735626891054,0.053938,92832.0,92831.0,0.3608]
[1735626891351,0.053938,92832.0,92831.0,0.41120002]
[1735626891352,0.053978,92832.0,92831.0,0.41120002]
[1735626891748,0.053978,92832.0,92831.0,0.3608]
[1735626892653,0.053942,92825.0,92824.0,0.00161596]
[1735626892851,0.052978,92832.0,92819.0,0.3608]
[1735626893050,0.052945,92820.0,92819.0,0.3608]
[1735626893351,0.052985,92820.0,92819.0,0.3608]
[1735626893952,0.049985,92820.0,92819.0,0.3608]
[1735626894154,0.049985,92820.0,92819.0,0.4124692]
[1735626895450,0.049985,92820.0,92819.0,0.4154692]
[1735626896043,0.049985,92820.0,92819.0,0.4184692]
[1735626903251,0.049985,92820.0,92819.0,0.3668]
[1735626903653,0.049985,92820.0,92819.0,0.3658]
[1735626904051,0.049985,92820.0,92819.0,0.3648]
[1735626904658,0.049985,92820.0,92819.0,0.3638]
[1735626906156,0.049985,92820.0,92819.0,0.003]
[1735626916369,0.049985,92820.0,92819.0,0.001]
[1735626916674,0.053947,92817.0,92816.0,4e-05]
[1735626916971,0.053987,92817.0,92816.0,4e-05]
[1735626918375,0.054987,92817.0,92816.0,4e-05]
[1735626918670,0.053951,92811.0,92809.0,0.3608]
[1735626918873,0.053951,92811.0,92809.0,0.34084]
[1735626919075,0.053991,92811.0,92809.0,0.34084]
[1735626919274,4e-05,92810.0,92809.0,0.34084]
[1735626921878,0.053952,92809.0,92801.0,0.0376]
[1735626922265,4e-05,92808.0,92801.0,0.0376]
[1735626923181,0.053956,92802.0,92801.0,0.01764]